lending/lending_fUSD_20250224
["ID","MTS","AMOUNT","RATE_DAILY","PERIOD"]
[354241359,1740360644662,-544.51,0.00016438,2]
[354241360,1740360644672,-500.0,0.00016438,2]
[354241361,1740360644681,-500.0,0.00016438,2]
[354241362,1740360644691,-954.78,0.00016438,2]
[354241363,1740360644700,-1858.98,0.00016438,2]
[354241364,1740360644709,-500.0,0.00016438,2]
[354241365,1740360644718,-1533.63,0.00016438,2]
[354241366,1740360644728,-1183.33,0.00016438,2]
[354241367,1740360644739,-500.0,0.00016438,2]
[354241368,1740360644748,-500.0,0.00016438,2]
[354241369,1740360644756,-500.0,0.00016438,2]
[354241370,1740360644766,-500.0,0.00016438,2]
[354241371,1740360644775,-799.83,0.00016438,2]
[354241372,1740360644784,-500.0,0.00016438,2]
[354241373,1740360644793,-1056.53,0.00016438,2]
[354241374,1740360644802,-1000.23,0.00016438,2]
[354241375,1740360644813,-1864.48,0.00016438,2]
[354241376,1740360644823,-775.58,0.00016438,2]
[354241377,1740360644832,-2718.26,0.00016438,2]
[354241378,1740360644842,-500.0,0.00016438,2]
[354241379,1740360644851,-4321.49,0.00016438,2]
[354241380,1740360644860,-809.15,0.00016438,2]
[354241381,1740360644870,-1206.62,0.00016438,2]
[354241382,1740360644879,-3474.32,0.00016438,2]
[354241383,1740360644890,-500.0,0.00016438,2]
[354241384,1740360644900,-2524.18,0.00016438,2]
[354241385,1740360644909,-697.55,0.00016438,2]
[354241386,1740360644918,-600.53,0.00016438,2]
[354241387,1740360644927,-693.09,0.00016438,2]
[354241388,1740360644936,-500.0,0.00016438,2]
[354241389,1740360644946,-1176.71,0.00016438,2]
[354241390,1740360644954,-500.0,0.00016438,2]
[354241391,1740360644963,-779.64,0.00016438,2]
[354241392,1740360644972,-2554.19,0.00016438,2]
[354241393,1740360644981,-500.0,0.00016438,2]
[354241394,1740360644991,-2933.14,0.00016438,2]
[354241395,1740360645001,-2259.01,0.00016438,2]
[354241396,1740360645011,-1070.6,0.00016438,2]
[354241397,1740360645020,-500.0,0.00016438,2]
[354241398,1740360645030,-1523.52,0.00016438,2]
[354241399,1740360645039,-1956.56,0.00016438,2]
[354241400,1740360645048,-1249.57,0.00016438,2]
[354241401,1740360645058,-4732.85,0.00016438,2]
[354241402,1740360645068,-1868.69,0.00016438,2]
[354241403,1740360645077,-500.0,0.00016438,2]
[354241404,1740360645087,-569.94,0.00016438,2]
[354241405,1740360645097,-1110.02,0.00016438,2]
[354241406,1740360645106,-1425.21,0.00016438,2]
[354241407,1740360645116,-678.88,0.00016438,2]
[354241408,1740360645126,-1422.7,0.00016438,2]
[354241409,1740360645136,-1398.77,0.00016438,2]
[354241410,1740360645145,-1744.28,0.00016438,2]
[354241411,1740360645155,-2123.95,0.00016438,2]
[354241412,1740360645164,-1541.47,0.00016438,2]
[354241413,1740360645173,-3274.06,0.00016438,2]
[354241414,1740360645183,-2266.32,0.00016438,2]
[354241415,1740360645192,-2268.34,0.00016438,2]
[354241416,1740360645202,-6033.67,0.00016438,2]
[354241417,1740360645211,-762.23,0.00016438,2]
[354241418,1740360645221,-955.0,0.00016438,2]
[354241419,1740360645230,-765.43,0.00016438,2]
[354241420,1740360645241,-2741.47,0.00016438,2]
[354241421,1740360645250,-712.04,0.00016438,2]
[354241422,1740360645260,-2489.76,0.00016438,2]
[354241423,1740360645269,-1105.89,0.00016438,2]
[354241424,1740360645279,-1317.22,0.00016438,2]
[354241425,1740360645288,-1422.42,0.00016438,2]
[354241426,1740360645298,-608.41,0.00016438,2]
[354241427,1740360645307,-500.0,0.00016438,2]
[354241428,1740360645317,-2315.49,0.00016438,2]
[354241429,1740360645326,-1746.43,0.00016438,2]
[354241430,1740360645336,-2010.53,0.00016438,2]
[354241431,1740360645347,-1018.68,0.00016438,2]
[354241432,1740360645356,-500.0,0.00016438,2]
[354241433,1740360645366,-472.7020275,0.00016438,2]
[354241434,1740360645375,-658.95,0.00016438,2]
[354241435,1740360645385,-2043.06,0.00016438,2]
[354241436,1740360645394,-793.04,0.00016438,2]
[354241437,1740360645403,-500.0,0.00016438,2]
[354241438,1740360645413,-1851.8,0.00016438,2]
[354241439,1740360645422,-500.0,0.00016438,2]
[354241440,1740360645432,-500.0,0.00016438,2]
[354241441,1740360645441,-899.47,0.00016438,2]
[354241442,1740360645451,-1211.97,0.00016438,2]
[354241443,1740360645461,-500.0,0.00016438,2]
[354241444,1740360645471,-2340.51,0.00016438,2]
[354241445,1740360645481,-500.0,0.00016438,2]
[354241446,1740360645492,-1127.55,0.00016438,2]
[354241447,1740360645501,-5473.05,0.00016438,2]
[354241448,1740360645511,-2184.92,0.00016438,2]
[354241449,1740360645521,-1309.27,0.00016438,2]
[354241450,1740360645530,-2516.54,0.00016438,2]
[354241451,1740360645539,-500.0,0.00016438,2]
[354241452,1740360645549,-789.29,0.00016438,2]
[354241453,1740360645558,-500.0,0.00016438,2]
[354241454,1740360645568,-587.79,0.00016438,2]
[354241455,1740360645577,-1625.01,0.00016438,2]
[354241456,1740360645588,-2388.7,0.00016438,2]
[354241457,1740360645597,-1630.62,0.00016438,2]
[354241458,1740360645606,-1597.73,0.00016438,2]
[354241459,1740360645615,-1696.75,0.00016438,2]
[354241460,1740360645625,-500.0,0.00016438,2]
[354241461,1740360645634,-2202.61,0.00016438,2]
[354241462,1740360645643,-1686.75,0.00016438,2]
[354241463,1740360645652,-2890.71,0.00016438,2]
[354241464,1740360645661,-2125.49,0.00016438,2]
[354241465,1740360645671,-500.0,0.00016438,2]
[354241466,1740360645680,-2065.78,0.00016438,2]
[354241467,1740360645689,-1573.58,0.00016438,2]
[354241468,1740360645699,-577.2,0.00016438,2]
[354241469,1740360645708,-572.49,0.00016438,2]
[354241471,1740360645718,-500.0,0.00016438,2]
[354241472,1740360645727,-1203.22,0.00016438,2]
[354241473,1740360645738,-500.0,0.00016438,2]
[354241474,1740360645749,-2032.17,0.00016438,2]
[354241475,1740360645758,-2813.47,0.00016438,2]
[354241476,1740360645768,-500.0,0.00016438,2]
[354241477,1740360645778,-2936.48,0.00016438,2]
[354241478,1740360645787,-500.0,0.00016438,2]
[354241479,1740360645799,-1443.22,0.00016438,2]
[354241480,1740360645809,-1608.76,0.00016438,2]
[354241481,1740360645819,-500.0,0.00016438,2]
[354241482,1740360645828,-935.79,0.00016438,2]
[354241483,1740360645838,-1907.61,0.00016438,2]
[354241484,1740360645849,-500.0,0.00016438,2]
[354241485,1740360645859,-3339.64,0.00016438,2]
[354241486,1740360645868,-1721.62,0.00016438,2]
[354241487,1740360645878,-500.0,0.00016438,2]
[354241488,1740360645889,-232.36159158,0.00016438,2]
[354241489,1740360645898,-1025.47,0.00016438,2]
[354241490,1740360645907,-2925.99,0.00016438,2]
[354241491,1740360645916,-2230.09,0.00016438,2]
[354241492,1740360645925,-500.0,0.00016438,2]
[354241493,1740360645936,-5380.24,0.00016438,2]
[354241494,1740360645947,-416.08504316,0.00016438,2]
[354241495,1740360645957,-500.0,0.00016438,2]
[354241496,1740360645966,-1261.41097477,0.00016438,2]
[354241542,1740360646553,-290.484,0.00016438,2]
[354241576,1740360646863,-983.07502523,0.00016438,2]
[354241578,1740360646872,-884.71605799,0.00016438,2]
[354241580,1740360646883,-343.63394201,0.00016438,2]
[354241582,1740360646893,-347.48388813,0.00016438,2]
[354241585,1740360646905,-479.29985,0.00016438,2]
[354241587,1740360646915,-227.87626187,0.00016438,2]
[354241589,1740360646924,-500.0,0.00016438,2]
[354241591,1740360646933,-500.0,0.00016438,2]
[354241593,1740360646943,-500.0,0.00016438,2]
[354241595,1740360646952,-500.0,0.00016438,2]
[354241597,1740360646960,-661.50373813,0.00016438,2]
[354241600,1740360646975,-947.09626187,0.00016438,2]
[354241602,1740360646984,-672.18,0.00016438,2]
[354241604,1740360646994,-500.0,0.00016438,2]
[354241606,1740360647003,-5.31873839,0.00016438,2]
[354241617,1740360647099,-726.48126161,0.00016438,2]
[354241619,1740360647108,-500.0,0.00016438,2]
[354241620,1740360647117,-1531.77,0.00016438,2]
[354241622,1740360647127,-240.42979095,0.00016438,2]
[354241625,1740360647138,-585.59020905,0.00016438,2]
[354241627,1740360647147,-212.60126048,0.00016438,2]
[354241667,1740360647519,-287.39873952,0.00016438,2]
[354241669,1740360647529,-500.0,0.00016438,2]
[354241671,1740360647538,-1515.69,0.00016438,2]
[354241673,1740360647547,-749.8,0.00016438,2]
[354241675,1740360647556,-2370.46,0.00016438,2]
[354241677,1740360647565,-755.94,0.00016438,2]
[354241679,1740360647575,-2766.86,0.00016438,2]
[354241681,1740360647584,-500.0,0.00016438,2]
[354241683,1740360647593,-500.0,0.00016438,2]
[354241685,1740360647603,-500.77,0.00016438,2]
[354241687,1740360647612,-1143.38,0.00016438,2]
[354241689,1740360647622,-500.0,0.00016438,2]
[354241691,1740360647632,-2113.0,0.00016438,2]
[354241692,1740360647642,-500.0,0.00016438,2]
[354241693,1740360647653,-1104.2,0.00016438,2]
[354241694,1740360647662,-531.12984117,0.00016438,2]
[354241695,1740360647671,-1188.08,0.00016438,2]
[354241696,1740360647679,-500.0,0.00016438,2]
[354241697,1740360647688,-2079.33,0.00016438,2]
[354241698,1740360647697,-997.89,0.00016438,2]
[354241699,1740360647705,-1002.94,0.00016438,2]
[354241700,1740360647714,-2339.47,0.00016438,2]
[354241701,1740360647723,-814.83,0.00016438,2]
[354241703,1740360647732,-919.92,0.00016438,2]
[354241705,1740360647742,-796.77,0.00016438,2]
[354241707,1740360647751,-500.0,0.00016438,2]
[354241709,1740360647759,-500.0,0.00016438,2]
[354241711,1740360647768,-3033.8,0.00016438,2]
[354241712,1740360647777,-500.0,0.00016438,2]
[354241714,1740360647785,-2321.63,0.00016438,2]
[354241716,1740360647794,-2023.43,0.00016438,2]
[354241718,1740360647805,-1074.2,0.00016438,2]
[354241720,1740360647817,-1015.89,0.00016438,2]
[354241722,1740360647826,-500.0,0.00016438,2]
[354241724,1740360647835,-500.0,0.00016438,2]
[354241726,1740360647845,-1358.37,0.00016438,2]
[354241728,1740360647854,-500.0,0.00016438,2]
[354241730,1740360647863,-2763.29,0.00016438,2]
[354241732,1740360647872,-500.0,0.00016438,2]
[354241734,1740360647883,-685.88,0.00016438,2]
[354241736,1740360647894,-1095.49,0.00016438,2]
[354241738,1740360647905,-1763.32,0.00016438,2]
[354241740,1740360647914,-1207.21,0.00016438,2]
[354241743,1740360647923,-1068.8,0.00016438,2]
[354241745,1740360647932,-503.65032934,0.00016438,2]
[354241747,1740360647941,-500.0,0.00016438,2]
[354241749,1740360647951,-683.38,0.00016438,2]
[354241750,1740360647960,-500.0,0.00016438,2]
[354241752,1740360647969,-500.0,0.00016438,2]
[354241754,1740360647978,-500.0,0.00016438,2]
[354241756,1740360647987,-500.0,0.00016438,2]
[354241758,1740360647996,-2654.19,0.00016438,2]
[354241760,1740360648005,-2751.9,0.00016438,2]
[354241763,1740360648014,-500.0,0.00016438,2]
[354241765,1740360648026,-2604.79,0.00016438,2]
[354241767,1740360648036,-505.04362609,0.00016438,2]
[354241769,1740360648045,-2575.73,0.00016438,2]
[354241771,1740360648055,-500.0,0.00016438,2]
[354241773,1740360648065,-500.0,0.00016438,2]
[354241775,1740360648074,-500.0,0.00016438,2]
[354241777,1740360648083,-455.75972286,0.00016438,2]
[354241779,1740360648095,-372.49027714,0.00016438,2]
[354241781,1740360648105,-578.15810826,0.00016438,2]
[354241783,1740360648114,-2403.13709336,0.00016438,2]
[354241791,1740360648182,-3568.50630851,0.00016438,2]
[354241793,1740360648194,-1534.08659813,0.00016438,2]
[354241795,1740360648205,-500.0,0.00016438,2]
[354241797,1740360648214,-500.0,0.00016438,2]
[354241799,1740360648224,-500.0,0.00016438,2]
[354241801,1740360648234,-824.77,0.00016438,2]
[354241803,1740360648244,-502.16038106,0.00016438,2]
[354241805,1740360648254,-697.99,0.00016438,2]
[354241807,1740360648266,-500.0,0.00016438,2]
[354241809,1740360648275,-806.5,0.00016438,2]
[354241811,1740360648286,-2138.49,0.00016438,2]
[354241813,1740360648295,-286.9395902,0.00016438,2]
[354241815,1740360648305,-500.0,0.00016438,2]
[354241817,1740360648315,-500.0,0.00016438,2]
[354241819,1740360648325,-500.0,0.00016438,2]
[354241821,1740360648335,-1003.03,0.00016438,2]
[354241823,1740360648344,-150.34,0.00016438,2]
[354241825,1740360648354,-984.53,0.00016438,2]
[354241827,1740360648364,-392.51853378,0.00016438,2]
[354241829,1740360648374,-150.0,0.00016449,2]
[354241831,1740360648383,-349.43267624,0.00016466,2]
[354241833,1740360648392,-150.0,0.0001647,2]
[354241835,1740360648402,-19276.62644929,0.000165,2]
[354241837,1740360648411,-184.88216333,0.000165,2]
[354241839,1740360648420,-336.56367344,0.000165,2]
[354241841,1740360648430,-157.00959901,0.000165,2]
[354241843,1740360648439,-150.0,0.00016507,2]
[354241845,1740360648448,-12322.0148673,0.00016509,2]
[354241847,1740360648458,-15691.3090328,0.00016509,2]
[354241849,1740360648469,-2921.72954996,0.0001652,5]
[354241851,1740360648478,-289.559234,0.0001652,2]
[354241853,1740360648488,-500.0,0.0001652,2]
[354241855,1740360648497,-500.0,0.0001652,2]
[354241857,1740360648506,-500.0,0.0001652,2]
[354241859,1740360648516,-500.0,0.0001652,2]
[354241861,1740360648525,-683.69,0.0001652,2]
[354241863,1740360648535,-500.0,0.0001652,2]
[354241865,1740360648545,-344.152012,0.0001652,2]
[354241867,1740360648554,-500.0,0.0001652,2]
[354241869,1740360648564,-500.0,0.0001652,2]
[354241871,1740360648574,-500.0,0.0001652,2]
[354241873,1740360648583,-500.0,0.0001652,2]
[354241875,1740360648593,-521.4,0.0001652,2]
[354241877,1740360648602,-584.92,0.0001652,2]
[354241879,1740360648612,-500.0,0.0001652,2]
[354241881,1740360648622,-500.0,0.0001652,2]
[354241883,1740360648631,-542.98,0.0001652,2]
[354241885,1740360648640,-500.0,0.0001652,2]
[354241887,1740360648650,-181.76780913,0.0001652,2]
[354241889,1740360648660,-500.0,0.0001652,2]
[354241891,1740360648671,-500.0,0.0001652,2]
[354241893,1740360648680,-500.0,0.0001652,2]
[354241895,1740360648689,-563.37,0.0001652,2]
[354241897,1740360648699,-500.0,0.0001652,2]
[354241899,1740360648708,-737.74,0.0001652,2]
[354241901,1740360648718,-500.0,0.0001652,2]
[354241903,1740360648727,-500.0,0.0001652,2]
[354241905,1740360648736,-500.0,0.0001652,2]
[354241907,1740360648746,-500.0,0.0001652,2]
[354241909,1740360648756,-510.90042108,0.0001652,2]
[354241911,1740360648766,-643.5,0.0001652,2]
[354241913,1740360648776,-500.0,0.0001652,2]
[354241915,1740360648785,-500.0,0.0001652,2]
[354241917,1740360648796,-500.0,0.0001652,2]
[354241919,1740360648806,-500.0,0.0001652,2]
[354241921,1740360648816,-500.0,0.0001652,2]
[354241923,1740360648826,-500.0,0.0001652,2]
[354241925,1740360648835,-742.18,0.0001652,2]
[354241927,1740360648845,-500.0,0.0001652,2]
[354241929,1740360648853,-500.0,0.0001652,2]
[354241931,1740360648863,-500.0,0.0001652,2]
[354241933,1740360648872,-509.76,0.0001652,2]
[354241935,1740360648883,-500.0,0.0001652,2]
[354241937,1740360648892,-500.0,0.0001652,2]
[354241939,1740360648903,-500.0,0.0001652,2]
[354241941,1740360648912,-500.0,0.0001652,2]
[354241943,1740360648921,-500.0,0.0001652,2]
[354241945,1740360648931,-583.9,0.0001652,2]
[354241947,1740360648940,-500.0,0.0001652,2]
[354241949,1740360648950,-500.0,0.0001652,2]
[354241951,1740360648959,-500.0,0.0001652,2]
[354241953,1740360648969,-973.32,0.0001652,2]
[354241955,1740360648980,-500.0,0.0001652,2]
[354241956,1740360648990,-500.0,0.0001652,2]
[354241957,1740360649000,-500.0,0.0001652,2]
[354241958,1740360649011,-500.0,0.0001652,2]
[354241959,1740360649021,-500.0,0.0001652,2]
[354241960,1740360649032,-500.0,0.0001652,2]
[354241961,1740360649041,-500.0,0.0001652,2]
[354241962,1740360649051,-500.0,0.0001652,2]
[354241963,1740360649061,-500.0,0.0001652,2]
[354241964,1740360649070,-588.66818724,0.0001652,2]
[354241965,1740360649080,-500.0,0.0001652,2]
[354241966,1740360649090,-500.0,0.0001652,2]
[354241967,1740360649099,-500.0,0.0001652,2]
[354241968,1740360649109,-600.19,0.0001652,2]
[354241969,1740360649119,-662.66,0.0001652,2]
[354241970,1740360649128,-500.0,0.0001652,2]
[354241971,1740360649137,-500.0,0.0001652,2]
[354241972,1740360649148,-500.0,0.0001652,2]
[354241973,1740360649157,-500.0,0.0001652,2]
[354241974,1740360649167,-500.0,0.0001652,2]
[354241975,1740360649176,-500.0,0.0001652,2]
[354241976,1740360649186,-500.0,0.0001652,2]
[354241977,1740360649195,-500.0,0.0001652,2]
[354241978,1740360649205,-500.0,0.0001652,2]
[354241979,1740360649215,-500.0,0.0001652,2]
[354241980,1740360649224,-500.0,0.0001652,2]
[354241981,1740360649239,-500.0,0.0001652,2]
[354241982,1740360649249,-500.0,0.0001652,2]
[354241983,1740360649269,-500.0,0.0001652,2]
[354241984,1740360649280,-501.19,0.0001652,2]
[354241985,1740360649290,-500.0,0.0001652,2]
[354241986,1740360649300,-500.0,0.0001652,2]
[354241987,1740360649310,-500.0,0.0001652,2]
[354241988,1740360649320,-500.0,0.0001652,2]
[354241989,1740360649329,-500.0,0.0001652,2]
[354241990,1740360649339,-1219.68,0.0001652,2]
[354241991,1740360649349,-500.0,0.0001652,2]
[354241992,1740360649359,-500.0,0.0001652,2]
[354241993,1740360649368,-500.0,0.0001652,2]
[354241994,1740360649377,-500.0,0.0001652,2]
[354241995,1740360649387,-1296.97,0.0001652,2]
[354241996,1740360649396,-500.0,0.0001652,2]
[354241997,1740360649405,-500.0,0.0001652,2]
[354241998,1740360649415,-500.0,0.0001652,2]
[354241999,1740360649424,-500.0,0.0001652,2]
[354242000,1740360649433,-1056.4,0.0001652,2]
[354242001,1740360649443,-1188.7,0.0001652,2]
[354242002,1740360649452,-500.0,0.0001652,2]
[354242003,1740360649462,-500.0,0.0001652,2]
[354242004,1740360649471,-676.41,0.0001652,2]
[354242005,1740360649481,-1878.39,0.0001652,2]
[354242006,1740360649492,-500.0,0.0001652,2]
[354242007,1740360649501,-500.0,0.0001652,2]
[354242008,1740360649511,-500.0,0.0001652,2]
[354242009,1740360649520,-685.32,0.0001652,2]
[354242010,1740360649529,-657.51,0.0001652,2]
[354242011,1740360649537,-500.0,0.0001652,2]
[354242012,1740360649546,-1494.2,0.0001652,2]
[354242013,1740360649555,-500.0,0.0001652,2]
[354242014,1740360649564,-500.0,0.0001652,2]
[354242015,1740360649574,-500.0,0.0001652,2]
[354242016,1740360649583,-500.0,0.0001652,2]
[354242017,1740360649593,-500.0,0.0001652,2]
[354242018,1740360649602,-800.48,0.0001652,2]
[354242019,1740360649611,-500.0,0.0001652,2]
[354242020,1740360649621,-675.75,0.0001652,2]
[354242021,1740360649631,-689.0,0.0001652,2]
[354242022,1740360649640,-1469.75,0.0001652,2]
[354242023,1740360649650,-500.0,0.0001652,2]
[354242024,1740360649662,-1168.6,0.0001652,2]
[354242025,1740360649671,-500.0,0.0001652,2]
[354242026,1740360649681,-500.0,0.0001652,2]
[354242027,1740360649690,-500.0,0.0001652,2]
[354242028,1740360649700,-638.87,0.0001652,2]
[354242029,1740360649709,-1000.0,0.0001652,2]
[354242030,1740360649719,-882.5,0.0001652,2]
[354242031,1740360649728,-636.23,0.0001652,2]
[354242032,1740360649738,-500.0,0.0001652,2]
[354242033,1740360649748,-1031.86,0.0001652,2]
[354242034,1740360649757,-500.0,0.0001652,2]
[354242035,1740360649766,-958.81,0.0001652,2]
[354242036,1740360649775,-500.0,0.0001652,2]
[354242037,1740360649785,-500.0,0.0001652,2]
[354242038,1740360649795,-506.22,0.0001652,2]
[354242039,1740360649805,-500.0,0.0001652,2]
[354242040,1740360649815,-1406.88,0.0001652,2]
[354242041,1740360649825,-621.93,0.0001652,2]
[354242042,1740360649834,-503.82,0.0001652,2]
[354242043,1740360649843,-562.44,0.0001652,2]
[354242044,1740360649852,-500.0,0.0001652,2]
[354242045,1740360649861,-548.01,0.0001652,2]
[354242046,1740360649870,-500.0,0.0001652,2]
[354242047,1740360649881,-695.7,0.0001652,2]
[354242048,1740360649890,-905.49,0.0001652,2]
[354242049,1740360649900,-508.89,0.0001652,2]
[354242050,1740360649909,-500.0,0.0001652,2]
[354242051,1740360649918,-562.96,0.0001652,2]
[354242052,1740360649927,-675.25,0.0001652,2]
[354242053,1740360649937,-500.0,0.0001652,2]
[354242054,1740360649946,-500.0,0.0001652,2]
[354242055,1740360649956,-1017.88,0.0001652,2]
[354242056,1740360649966,-500.0,0.0001652,2]
[354242057,1740360649975,-900.37,0.0001652,2]
[354242058,1740360649987,-615.86,0.0001652,2]
[354242059,1740360649997,-500.0,0.0001652,2]
[354242060,1740360650006,-797.48,0.0001652,2]
[354242061,1740360650016,-582.99,0.0001652,2]
[354242062,1740360650025,-500.0,0.0001652,2]
[354242063,1740360650035,-500.0,0.0001652,2]
[354242064,1740360650044,-500.0,0.0001652,2]
[354242065,1740360650053,-596.85,0.0001652,2]
[354242066,1740360650062,-500.0,0.0001652,2]
[354242067,1740360650071,-500.0,0.0001652,2]
[354242068,1740360650081,-920.11,0.0001652,2]
[354242069,1740360650091,-520.34,0.0001652,2]
[354242070,1740360650100,-983.35,0.0001652,2]
[354242071,1740360650109,-1264.29,0.0001652,2]
[354242072,1740360650118,-547.67,0.0001652,2]
[354242073,1740360650127,-641.2,0.0001652,2]
[354242074,1740360650136,-603.3,0.0001652,2]
[354242075,1740360650145,-500.0,0.0001652,2]
[354242076,1740360650155,-500.0,0.0001652,2]
[354242077,1740360650164,-586.47,0.0001652,2]
[354242078,1740360650173,-500.76,0.0001652,2]
[354242079,1740360650182,-734.61,0.0001652,2]
[354242080,1740360650192,-500.0,0.0001652,2]
[354242081,1740360650201,-500.0,0.0001652,2]
[354242082,1740360650211,-500.0,0.0001652,2]
[354242083,1740360650221,-500.0,0.0001652,2]
[354242084,1740360650230,-894.08,0.0001652,2]
[354242085,1740360650242,-874.56,0.0001652,2]
[354242086,1740360650252,-603.86,0.0001652,2]
[354242087,1740360650395,-630.95,0.0001652,2]
[354242088,1740360650405,-500.0,0.0001652,2]
[354242089,1740360650416,-500.0,0.0001652,2]
[354242090,1740360650425,-1007.22,0.0001652,2]
[354242091,1740360650435,-601.98,0.0001652,2]
[354242092,1740360650444,-583.38,0.0001652,2]
[354242093,1740360650453,-500.0,0.0001652,2]
[354242094,1740360650462,-500.0,0.0001652,2]
[354242095,1740360650471,-500.0,0.0001652,2]
[354242096,1740360650481,-500.0,0.0001652,2]
[354242097,1740360650491,-500.0,0.0001652,2]
[354242098,1740360650500,-500.0,0.0001652,2]
[354242099,1740360650510,-500.0,0.0001652,2]
[354242100,1740360650519,-500.0,0.0001652,2]
[354242101,1740360650529,-500.0,0.0001652,2]
[354242102,1740360650538,-500.0,0.0001652,2]
[354242103,1740360650547,-618.82,0.0001652,2]
[354242104,1740360650557,-169.45309973,0.0001652,2]
[354242105,1740360650566,-1416.17,0.0001652,2]
[354242106,1740360650575,-519.93,0.0001652,2]
[354242107,1740360650585,-500.0,0.0001652,2]
[354242108,1740360650594,-927.68,0.0001652,2]
[354242109,1740360650603,-500.0,0.0001652,2]
[354242110,1740360650612,-500.0,0.0001652,2]
[354242111,1740360650622,-685.06,0.0001652,2]
[354242112,1740360650631,-661.57,0.0001652,2]
[354242113,1740360650641,-603.11,0.0001652,2]
[354242114,1740360650650,-500.0,0.0001652,2]
[354242115,1740360650660,-500.0,0.0001652,2]
[354242116,1740360650669,-507.22,0.0001652,2]
[354242117,1740360650678,-500.0,0.0001652,2]
[354242118,1740360650686,-649.08869808,0.0001652,2]
[354242119,1740360650695,-742.49,0.0001652,2]
[354242120,1740360650704,-899.66,0.0001652,2]
[354242121,1740360650713,-500.0,0.0001652,2]
[354242122,1740360650722,-500.0,0.0001652,2]
[354242123,1740360650731,-590.04,0.0001652,2]
[354242124,1740360650742,-500.0,0.0001652,2]
[354242125,1740360650751,-500.0,0.0001652,2]
[354242126,1740360650761,-1162.81,0.0001652,2]
[354242127,1740360650770,-530.13,0.0001652,2]
[354242128,1740360650779,-940.68,0.0001652,2]
[354242129,1740360650789,-631.31,0.0001652,2]
[354242130,1740360650800,-500.0,0.0001652,2]
[354242131,1740360650816,-582.01,0.0001652,2]
[354242132,1740360650826,-1043.11,0.0001652,2]
[354242133,1740360650835,-513.98,0.0001652,2]
[354242134,1740360650845,-500.0,0.0001652,2]
[354242135,1740360650854,-1047.31,0.0001652,2]
[354242136,1740360650863,-516.35,0.0001652,2]
[354242137,1740360650872,-758.63,0.0001652,2]
[354242138,1740360650882,-500.0,0.0001652,2]
[354242139,1740360650892,-500.0,0.0001652,2]
[354242140,1740360650901,-500.0,0.0001652,2]
[354242141,1740360650911,-500.0,0.0001652,2]
[354242142,1740360650921,-693.58,0.0001652,2]
[354242143,1740360650930,-514.89,0.0001652,2]
[354242144,1740360650939,-993.88,0.0001652,2]
[354242145,1740360650949,-723.08,0.0001652,2]
[354242146,1740360650958,-562.02,0.0001652,2]
[354242147,1740360650967,-500.0,0.0001652,2]
[354242148,1740360650976,-500.0,0.0001652,2]
[354242149,1740360650987,-500.0,0.0001652,2]